bitfinex-derivatives/quotes_BTCF0:USTF0_20250315
["timestamp","ask_amount","ask_price","bid_price","bid_amount"]
[1742007330779,0.3021809,84600.0,84599.0,0.0347]
[1742007332881,0.2367891,84611.0,84610.0,0.0590927]
[1742007333079,0.1181883,84609.0,84608.0,0.4198947]
[1742007333683,0.2368283,84609.0,84608.0,0.4198947]
[1742007334288,0.2688283,84609.0,84608.0,0.4198947]
[1742007334788,0.2368283,84609.0,84608.0,0.4198947]
[1742007338187,0.2378283,84609.0,84608.0,0.4198947]
[1742007338984,0.4878283,84609.0,84608.0,0.3608]
[1742007339180,0.1181897,84608.0,84607.0,0.0304]
[1742007339376,0.1489897,84608.0,84607.0,0.0304]
[1742007339582,0.1815897,84608.0,84607.0,0.0304]
[1742007341591,0.1825897,84608.0,84607.0,0.0304]
[1742007342285,0.4425897,84608.0,84607.0,0.0304]
[1742007342489,0.1825897,84608.0,84607.0,0.0304]
[1742007343081,0.4625897,84608.0,84607.0,0.0304]
[1742007343286,0.1825897,84608.0,84607.0,0.0304]
[1742007344987,0.4525897,84608.0,84607.0,0.0304]
[1742007345188,0.1825897,84608.0,84607.0,0.0304]
[1742007346490,0.4625897,84608.0,84607.0,0.0304]
[1742007346696,0.1825897,84608.0,84607.0,0.0304]
[1742007347297,0.4425897,84608.0,84607.0,0.0304]
[1742007347500,0.1825897,84608.0,84607.0,0.0304]
[1742007350095,0.2925897,84608.0,84607.0,0.0304]
[1742007350295,0.1825897,84608.0,84607.0,0.0304]
[1742007351801,0.2825897,84608.0,84607.0,0.0304]
[1742007352101,0.1825897,84608.0,84607.0,0.0304]
[1742007354000,0.4425897,84608.0,84607.0,0.0304]
[1742007354196,0.1825897,84608.0,84607.0,0.0304]
[1742007354692,0.4225897,84608.0,84607.0,0.0304]
[1742007354892,0.1825897,84608.0,84607.0,0.0304]
[1742007356102,0.4125897,84608.0,84607.0,0.0304]
[1742007356304,0.1825897,84608.0,84607.0,0.0304]
[1742007358597,0.2925897,84608.0,84607.0,0.0304]
[1742007358897,0.2725897,84608.0,84607.0,0.0304]
[1742007359206,0.2825897,84608.0,84607.0,0.0304]
[1742007359503,0.1825897,84608.0,84607.0,0.0304]
[1742007361099,0.4225897,84608.0,84607.0,0.0304]
[1742007361401,0.1825897,84608.0,84607.0,0.0304]
[1742007361994,0.4325897,84608.0,84607.0,0.0304]
[1742007362199,0.1825897,84608.0,84607.0,0.0304]
[1742007363803,0.4125897,84608.0,84607.0,0.0304]
[1742007364008,0.1825897,84608.0,84607.0,0.0304]
[1742007366506,0.2825897,84608.0,84607.0,0.0304]
[1742007366702,0.1825897,84608.0,84607.0,0.0304]
[1742007367302,0.2825897,84608.0,84607.0,0.0304]
[1742007367510,0.4425897,84608.0,84607.0,0.0304]
[1742007367711,0.1825897,84608.0,84607.0,0.0304]
[1742007368318,0.4325897,84608.0,84607.0,0.0304]
[1742007368517,0.1825897,84608.0,84607.0,0.0304]
[1742007368813,0.4425897,84608.0,84607.0,0.0304]
[1742007369015,0.4225897,84608.0,84607.0,0.0304]
[1742007369215,0.1825897,84608.0,84607.0,0.0304]
[1742007370806,0.4225897,84608.0,84607.0,0.0304]
[1742007371012,0.1825897,84608.0,84607.0,0.0304]
[1742007371914,0.2994297,84608.0,84607.0,0.0304]
[1742007372119,0.5694297,84608.0,84607.0,0.0304]
[1742007372316,0.2994297,84608.0,84607.0,0.0304]
[1742007373315,0.4094297,84608.0,84607.0,0.0304]
[1742007373514,0.2994297,84608.0,84607.0,0.0304]
[1742007373710,0.3994297,84608.0,84607.0,0.0304]
[1742007373919,0.2994297,84608.0,84607.0,0.0304]
[1742007374321,0.5794297,84608.0,84607.0,0.0304]
[1742007374522,0.2994297,84608.0,84607.0,0.0304]
[1742007376922,0.5494297,84608.0,84607.0,0.0304]
[1742007377128,0.2994297,84608.0,84607.0,0.0304]
[1742007377714,0.3894297,84608.0,84607.0,0.0304]
[1742007377930,0.2994297,84608.0,84607.0,0.0304]
[1742007378309,0.31451694,84608.0,84607.0,0.0304]
[1742007379026,0.35451694,84608.0,84607.0,0.0304]
[1742007379214,0.31451694,84608.0,84607.0,0.0304]
[1742007380025,0.2994297,84608.0,84607.0,0.0304]
[1742007380620,0.5594297,84608.0,84607.0,0.0304]
[1742007380822,0.2994297,84608.0,84607.0,0.0304]
[1742007381420,0.5294297,84608.0,84607.0,0.0304]
[1742007381614,0.2994297,84608.0,84607.0,0.0304]
[1742007382129,0.5594297,84608.0,84607.0,0.0304]
[1742007382322,0.2994297,84608.0,84607.0,0.0304]
[1742007382624,0.2360297,84608.0,84607.0,0.063]
[1742007383928,0.2360297,84608.0,84607.0,0.1811911]
[1742007384318,0.2360297,84608.0,84607.0,0.063]
[1742007384519,0.2360297,84608.0,84607.0,0.323]
[1742007384819,0.2356297,84608.0,84607.0,0.1811911]
[1742007385021,0.2356297,84608.0,84607.0,0.4211911]
[1742007386119,0.2356297,84608.0,84607.0,0.1811911]
[1742007386320,0.2356297,84608.0,84607.0,0.4611911]
[1742007386519,0.2356297,84608.0,84607.0,0.1811911]
[1742007386725,0.2356297,84608.0,84607.0,0.4311911]
[1742007387426,0.2356297,84608.0,84607.0,0.4711911]
[1742007387819,0.2356297,84608.0,84607.0,0.4111911]
[1742007388017,0.001,84608.0,84607.0,0.2511911]
[1742007388523,0.001,84608.0,84607.0,0.7511911]
[1742007388723,0.001,84608.0,84607.0,0.7811911]
[1742007389117,0.1191897,84608.0,84607.0,0.7911911]
[1742007389429,0.001,84608.0,84607.0,0.7911911]
[1742007389631,0.1181827,84614.0,84613.0,0.0590913]
[1742007389929,0.1181827,84614.0,84613.0,0.6898913]
[1742007390732,0.1181827,84614.0,84613.0,0.4198913]
[1742007391231,0.1181827,84614.0,84613.0,0.6698913]
[1742007392032,0.1181827,84614.0,84613.0,0.6708913]
[1742007392233,0.1181827,84614.0,84613.0,0.4208913]
[1742007392437,0.1181827,84614.0,84613.0,0.7008913]
[1742007392929,0.1181827,84614.0,84613.0,0.7338913]
[1742007393336,0.1181827,84614.0,84613.0,0.4538913]
[1742007393634,0.1181827,84614.0,84613.0,0.7238913]
[1742007393817,0.1181827,84614.0,84613.0,0.4538913]
[1742007394021,0.1181827,84614.0,84613.0,0.6938913]
[1742007394221,0.1181827,84614.0,84613.0,0.034]
[1742007394222,0.7089827,84614.0,84613.0,0.034]
[1742007394426,0.1181897,84608.0,84607.0,0.002]
[1742007394834,0.3581897,84608.0,84607.0,0.002]
[1742007395038,0.1181897,84608.0,84607.0,0.002]
[1742007395338,0.1815897,84608.0,84607.0,0.002]
[1742007395831,0.1181911,84607.0,84604.0,0.1181948]
[1742007396039,0.1181925,84606.0,84605.0,0.1181937]
[1742007396343,0.2661325,84606.0,84605.0,0.13337972]
[1742007397535,0.2344325,84606.0,84605.0,0.13337972]
[1742007399732,0.2344325,84606.0,84605.0,0.39337972]
[1742007400030,0.2344325,84606.0,84605.0,0.13337972]
[1742007401027,0.2344325,84606.0,84605.0,0.41337972]
[1742007401533,0.2344325,84606.0,84605.0,0.39337972]
[1742007401935,0.2344325,84606.0,84605.0,0.36337972]
[1742007402336,0.2344325,84606.0,84605.0,0.37337972]
[1742007402634,0.2344325,84606.0,84605.0,0.42337972]
[1742007403537,0.2344325,84606.0,84605.0,0.13337972]
[1742007403723,0.2344325,84606.0,84605.0,0.38337972]
[1742007404042,0.2344325,84606.0,84605.0,0.39337972]
[1742007404227,0.2344325,84606.0,84605.0,0.37337972]
[1742007404428,0.2344325,84606.0,84605.0,0.13337972]
[1742007404629,0.2664325,84606.0,84605.0,0.13337972]
[1742007404828,0.2664325,84606.0,84605.0,0.38337972]
[1742007405028,0.2664325,84606.0,84605.0,0.13337972]
[1742007405438,0.2664325,84606.0,84605.0,0.96337972]
[1742007405835,0.2664325,84606.0,84605.0,0.86337972]
[1742007406534,0.2664325,84606.0,84605.0,0.89537972]
[1742007406942,0.2664325,84606.0,84605.0,0.91537972]
[1742007407339,0.2664325,84606.0,84605.0,0.95537972]
[1742007408240,0.2995325,84606.0,84605.0,0.95537972]
[1742007408438,0.2995325,84606.0,84605.0,0.98587972]
[1742007408637,0.2995325,84606.0,84605.0,0.91587972]
[1742007409136,0.2995325,84606.0,84605.0,1.00587972]
[1742007409336,0.2995325,84606.0,84605.0,0.90587972]
[1742007409546,0.2995325,84606.0,84605.0,0.97587972]
[1742007409842,0.2995325,84606.0,84605.0,0.98587972]
[1742007410044,0.2995325,84606.0,84605.0,1.02587972]
[1742007410244,0.2995325,84606.0,84605.0,0.47587972]
[1742007410452,0.2995325,84606.0,84605.0,0.19587972]
[1742007410747,0.2995325,84606.0,84605.0,0.94587972]
[1742007411044,0.2995325,84606.0,84605.0,0.97587972]
[1742007411342,0.2995325,84606.0,84605.0,0.93587972]
[1742007411545,0.2995325,84606.0,84605.0,0.94587972]
[1742007411745,0.2995325,84606.0,84605.0,0.93587972]
[1742007412045,0.2995325,84606.0,84605.0,0.19587972]
[1742007412247,0.2995325,84606.0,84605.0,0.96587972]
[1742007413144,0.2995325,84606.0,84605.0,0.97587972]
[1742007413444,0.2995325,84606.0,84605.0,0.19587972]
[1742007413645,0.2995325,84606.0,84605.0,0.46587972]
[1742007413840,0.1832925,84606.0,84605.0,0.94587972]
[1742007414041,0.1832925,84606.0,84605.0,0.74587972]
[1742007414235,0.1832925,84606.0,84605.0,0.19587972]
[1742007414643,0.1832925,84606.0,84605.0,0.69587972]
[1742007414945,0.1832925,84606.0,84605.0,0.68587972]
[1742007415248,0.1832925,84606.0,84605.0,0.71587972]
[1742007415842,0.1832925,84606.0,84605.0,0.72587972]
[1742007416147,0.1832925,84606.0,84605.0,0.19587972]
[1742007416335,0.1832925,84606.0,84605.0,0.71587972]
[1742007416541,0.1832925,84606.0,84605.0,0.70587972]
[1742007417145,0.1832925,84606.0,84605.0,0.68587972]
[1742007417336,0.1832925,84606.0,84605.0,0.65587972]
[1742007418247,0.1832925,84606.0,84605.0,0.19587972]
[1742007418439,0.1832925,84606.0,84605.0,0.44587972]
[1742007418639,0.1832925,84606.0,84605.0,0.72587972]
[1742007419739,0.1832925,84606.0,84605.0,0.47587972]
[1742007419939,0.1832925,84606.0,84605.0,0.46587972]
[1742007420139,0.1832925,84606.0,84605.0,0.43587972]
[1742007420436,0.1832925,84606.0,84605.0,0.47587972]
[1742007421051,0.1832925,84606.0,84605.0,0.19587972]
[1742007421242,0.1832925,84606.0,84605.0,0.44587972]
[1742007422341,0.1832925,84606.0,84605.0,0.42587972]
[1742007422546,0.1832925,84606.0,84605.0,0.47587972]
[1742007423044,0.1832925,84606.0,84605.0,0.44587972]
[1742007423447,0.1832925,84606.0,84605.0,0.19587972]
[1742007423645,0.1832925,84606.0,84605.0,0.45587972]
[1742007423848,0.1181925,84606.0,84605.0,0.45587972]
[1742007424054,0.1742555,84608.0,84607.0,0.1181911]
[1742007424260,0.1742555,84608.0,84607.0,0.7389911]
[1742007424459,0.1742555,84608.0,84607.0,0.8032911]
[1742007424647,0.11516,84608.0,84607.0,1.2932911]
[1742007424852,0.11516,84608.0,84607.0,1.0332911]
[1742007425146,0.1181834,84613.0,84612.0,0.1772726]
[1742007425468,0.1181834,84613.0,84612.0,0.9372726]
[1742007425748,0.1181808,84615.0,84614.0,0.1772705]
[1742007425948,0.1181808,84615.0,84614.0,0.7880705]
[1742007426154,0.1181808,84615.0,84614.0,0.8280705]
[1742007426449,0.1181808,84615.0,84614.0,0.8506705]
[1742007427055,0.1181808,84615.0,84614.0,0.8406705]
[1742007427650,0.1181808,84615.0,84614.0,0.6006705]
[1742007427850,0.1181808,84615.0,84614.0,0.8606705]
[1742007428043,0.11508,84618.0,84616.0,0.1181785]
[1742007428242,0.11508,84618.0,84617.0,0.1791771]
[1742007428243,0.2332558,84618.0,84617.0,0.1791771]
[1742007428452,0.11508,84618.0,84617.0,0.1791771]
[1742007428652,0.11835161,84619.0,84618.0,0.1181758]
[1742007428852,0.11835161,84619.0,84618.0,0.9191758]
[1742007432153,0.00060001,84625.0,84624.0,0.1181674]
[1742007432354,0.0590692,84645.0,84631.0,0.1772329]
[1742007432355,0.2925944,84632.0,84631.0,0.1772329]
[1742007432662,0.2925944,84632.0,84631.0,0.81232077]
[1742007432850,0.2925944,84632.0,84631.0,0.55232077]
[1742007433957,0.2925944,84632.0,84631.0,0.80232077]
[1742007434959,0.1772344,84632.0,84631.0,0.80232077]
[1742007441866,0.0590782,84632.0,84631.0,0.80232077]
[1742007442057,0.1181541,84634.0,84633.0,0.1181548]
[1742007442369,0.1181541,84634.0,84633.0,0.3681548]
[1742007442564,0.1181541,84634.0,84633.0,0.4293548]
[1742007442772,0.1500541,84634.0,84633.0,0.1793548]
[1742007443468,0.1500541,84634.0,84633.0,0.4493548]
[1742007445065,0.1500541,84634.0,84633.0,0.1793548]
[1742007445265,0.1500541,84634.0,84633.0,0.4493548]
[1742007445475,0.1500541,84634.0,84633.0,0.1793548]
[1742007445674,0.1821541,84634.0,84633.0,0.1793548]
[1742007447988,0.1821541,84634.0,84633.0,0.4193548]
[1742007448181,0.1821541,84634.0,84633.0,0.1793548]
[1742007448663,0.1821541,84634.0,84633.0,0.4293548]
[1742007448864,0.1500541,84634.0,84633.0,0.4193548]
[1742007449275,0.00017721,84640.0,84633.0,0.3012]
[1742007449482,0.0590698,84644.0,84643.0,0.1181381]
[1742007449773,0.0325,84646.0,84645.0,0.1181381]
[1742007449980,0.00060001,84647.0,84646.0,0.1181367]
[1742007450276,0.00177292,84649.0,84648.0,0.1181339]
[1742007450468,0.73962891,84661.0,84660.0,0.1181171]
[1742007450668,0.85774461,84661.0,84660.0,0.3681171]
[1742007450868,0.85774461,84661.0,84660.0,0.1181171]
[1742007451068,0.85774461,84661.0,84660.0,0.4294171]
[1742007451481,0.85774461,84661.0,84660.0,0.4094171]
[1742007451982,0.73962891,84661.0,84660.0,0.4094171]
[1742007452165,0.73962891,84661.0,84660.0,0.9094171]
[1742007452369,0.1181148,84662.0,84661.0,0.1181157]
[1742007452569,0.1181148,84662.0,84661.0,0.94354425]
[1742007452770,0.1181148,84662.0,84661.0,0.95354425]
[1742007453378,0.0590627,84655.0,84648.0,0.00124]
[1742007453579,0.1181269,84653.0,84649.0,0.0322]
[1742007453777,0.1181269,84653.0,84652.0,0.0148315]
[1742007453982,0.1499269,84653.0,84652.0,0.0148315]
[1742007454173,0.2117269,84653.0,84652.0,0.2648315]
[1742007454489,0.2117269,84653.0,84652.0,0.3929598]
[1742007454783,0.2117269,84653.0,84652.0,0.3629598]
[1742007454784,0.1799269,84653.0,84652.0,0.3629598]
[1742007454972,0.1799269,84653.0,84652.0,0.0148315]
[1742007455281,0.1799269,84653.0,84652.0,0.3829598]
[1742007455492,0.1799269,84653.0,84652.0,0.1329598]
[1742007455676,0.1799269,84653.0,84652.0,0.1651598]
[1742007456471,0.1799269,84653.0,84652.0,0.4051598]
[1742007456667,0.1799269,84653.0,84652.0,0.4151598]
[1742007456882,0.1799269,84653.0,84652.0,0.4451598]
[1742007457577,0.1799269,84653.0,84652.0,0.1651598]
[1742007457778,0.1799269,84653.0,84652.0,0.4251598]
[1742007458176,0.1799269,84653.0,84652.0,0.1651598]
[1742007458981,0.1799269,84653.0,84652.0,0.4251598]
[1742007459187,0.1799269,84653.0,84652.0,0.1651598]
[1742007459777,0.1799269,84653.0,84652.0,0.3951598]
[1742007459978,0.1799269,84653.0,84652.0,0.4351598]
[1742007460383,0.1799269,84653.0,84652.0,0.4051598]
[1742007460882,0.1799269,84653.0,84652.0,0.1651598]
[1742007462082,0.1799269,84653.0,84652.0,0.4051598]
[1742007462483,0.1799269,84653.0,84652.0,0.4451598]
[1742007462690,0.1799269,84653.0,84652.0,0.1651598]
[1742007463393,0.1799269,84653.0,84652.0,0.4051598]
[1742007464386,0.1799269,84653.0,84652.0,0.1651598]
[1742007464696,0.1482269,84653.0,84652.0,0.1651598]
[1742007465181,0.1482269,84653.0,84652.0,0.4151598]
[1742007465381,0.1799269,84653.0,84652.0,0.4151598]
[1742007465883,0.1799269,84653.0,84652.0,0.3951598]
[1742007466280,0.1799269,84653.0,84652.0,0.4351598]
[1742007466484,0.1799269,84653.0,84652.0,0.1651598]
[1742007466683,0.1799269,84653.0,84652.0,0.4451598]
[1742007466889,0.1799269,84653.0,84652.0,0.3951598]
[1742007467085,0.1799269,84653.0,84652.0,0.1651598]
[1742007468391,0.1181171,84660.0,84659.0,0.0590586]
[1742007468588,0.0590568,84663.0,84656.0,0.3608]
[1742007468897,0.0590568,84663.0,84652.0,0.1060953]
[1742007468898,0.0590617,84656.0,84652.0,0.00017721]
[1742007469085,0.1181339,84648.0,84644.0,0.1181391]
[1742007469393,0.1181478,84638.0,84637.0,0.3608]
[1742007469595,0.1181478,84638.0,84637.0,0.4789492]
[1742007470198,0.1181478,84638.0,84637.0,0.1790492]
[1742007470511,0.1811478,84638.0,84637.0,0.1790492]
[1742007470691,0.1811478,84638.0,84637.0,0.0609]
[1742007470897,0.1181506,84636.0,84635.0,0.11992416]
[1742007471596,0.1181506,84636.0,84635.0,0.18262416]
[1742007473300,0.1812506,84636.0,84635.0,0.18262416]
[1742007473982,0.1812506,84636.0,84635.0,0.19636835]
[1742007475294,0.1812506,84636.0,84635.0,0.04621635]
[1742007475798,0.1812506,84636.0,84635.0,0.07781635]
[1742007478386,0.1812506,84636.0,84629.0,0.39147721]
[1742007478387,0.4212506,84636.0,84629.0,0.39147721]
[1742007478691,0.1181576,84631.0,84630.0,0.0316]
[1742007478888,0.3881576,84631.0,84630.0,0.0316]
[1742007479084,0.3981576,84631.0,84630.0,0.0316]
[1742007479495,0.1181716,84621.0,84620.0,0.0314]
[1742007479794,0.4831316,84621.0,84620.0,0.0316]
[1742007480094,0.1181785,84616.0,84615.0,0.0306]
[1742007480294,0.1181785,84616.0,84615.0,0.0622]
[1742007480694,0.2181785,84616.0,84615.0,0.0316]
[1742007480999,0.1798785,84616.0,84615.0,0.0316]
[1742007481797,0.1181813,84614.0,84611.0,0.0324]
[1742007482104,0.1181813,84614.0,84613.0,0.01602445]
[1742007482286,0.1181813,84614.0,84613.0,0.00177273]
[1742007482489,0.3881813,84614.0,84613.0,0.00177273]
[1742007482691,0.1171813,84614.0,84613.0,0.03257273]
[1742007483299,0.1161813,84614.0,84613.0,0.03257273]
[1742007483497,0.3561813,84614.0,84613.0,0.04649023]
[1742007483693,0.1793813,84614.0,84613.0,0.04649023]
[1742007483900,0.1793813,84614.0,84613.0,0.04849023]
[1742007484399,0.1793813,84614.0,84613.0,0.05049023]
[1742007485804,0.4193813,84614.0,84613.0,0.01969023]
[1742007486001,0.1793813,84614.0,84613.0,0.01969023]
[1742007486303,0.1793813,84614.0,84613.0,0.05159023]
[1742007489899,0.00060001,84623.0,84622.0,0.1181702]
[1742007490202,0.1181702,84622.0,84621.0,0.4578]
[1742007490404,0.1181702,84622.0,84621.0,0.5759716]
[1742007493613,0.11834501,84624.0,84623.0,0.1181688]
[1742007495103,0.11934501,84624.0,84623.0,0.1181688]
[1742007495513,0.12034501,84624.0,84623.0,0.1181688]
[1742007497109,0.12034501,84624.0,84623.0,0.3881688]
[1742007497307,0.12034501,84624.0,84623.0,0.3781688]
[1742007497504,0.12034501,84624.0,84623.0,0.3481688]
[1742007497700,0.12034501,84624.0,84623.0,0.1181688]
[1742007500412,0.12034501,84624.0,84623.0,0.3781688]
[1742007500615,0.12034501,84624.0,84623.0,0.1181688]
[1742007502215,0.15084501,84624.0,84623.0,0.1181688]
[1742007502717,0.15084501,84624.0,84621.0,0.5772102]
[1742007502718,0.1181702,84622.0,84621.0,0.5181251]
[1742007503021,0.1181702,84622.0,84621.0,0.5168851]
[1742007503514,0.1486702,84622.0,84621.0,0.5168851]
[1742007504008,0.1181702,84622.0,84621.0,0.5168851]
[1742007504209,0.1181702,84622.0,84621.0,0.7968851]
[1742007504409,0.1181702,84622.0,84621.0,0.5168851]
[1742007504813,0.1181702,84622.0,84621.0,0.7668851]
[1742007505118,0.1181702,84622.0,84621.0,0.5168851]
[1742007505507,0.1510702,84622.0,84621.0,0.5168851]
[1742007508918,0.1510702,84622.0,84621.0,0.7568851]
[1742007508919,0.1181702,84622.0,84621.0,0.7568851]
[1742007509223,0.1181702,84622.0,84621.0,0.7868851]
[1742007509818,0.1181702,84622.0,84621.0,0.7468851]
[1742007510119,0.1181702,84622.0,84621.0,0.7868851]
[1742007510424,0.1181702,84622.0,84621.0,1.0368851]
[1742007510617,0.1181702,84622.0,84621.0,1.0268851]
[1742007511009,0.1181702,84622.0,84621.0,1.0568851]
[1742007511522,0.1181702,84622.0,84621.0,0.7468851]
[1742007511910,0.1181702,84622.0,84621.0,0.7968851]
[1742007512226,0.1181702,84622.0,84621.0,0.5168851]
[1742007512724,0.1181702,84622.0,84621.0,0.7968851]
[1742007513026,0.1484702,84622.0,84621.0,0.7968851]
[1742007513523,0.1484702,84622.0,84621.0,0.5168851]
[1742007513720,0.1484702,84622.0,84621.0,0.7568851]
[1742007513915,0.1484702,84622.0,84621.0,0.7968851]
[1742007514522,0.1484702,84622.0,84621.0,0.7768851]
[1742007514822,0.1484702,84622.0,84621.0,0.5168851]
[1742007516409,0.1181702,84622.0,84621.0,0.7868851]
[1742007516924,0.1181702,84622.0,84621.0,0.7668851]
[1742007517518,0.1485702,84622.0,84621.0,0.7668851]
[1742007517926,0.1485702,84622.0,84621.0,0.7568851]
[1742007518130,0.1485702,84622.0,84621.0,0.5168851]
[1742007518326,0.1485702,84622.0,84621.0,0.7668851]
[1742007518826,0.1485702,84622.0,84621.0,0.5168851]
[1742007519317,0.1800702,84622.0,84621.0,0.5168851]
[1742007521129,0.1800702,84622.0,84621.0,0.7868851]
[1742007521627,0.1800702,84622.0,84621.0,0.5168851]
[1742007522020,0.1800702,84622.0,84621.0,0.5759716]
[1742007524329,0.1800702,84622.0,84621.0,0.2151716]
[1742007525933,0.2948302,84622.0,84621.0,0.0323]
[1742007526235,0.2948302,84622.0,84621.0,0.3931]
[1742007526421,0.2948302,84622.0,84621.0,0.5439716]
[1742007527029,0.2948302,84622.0,84621.0,0.1831716]
[1742007529135,0.2948302,84622.0,84621.0,0.065]
[1742007529441,0.2948302,84622.0,84621.0,0.1831716]
[1742007531829,0.2948302,84622.0,84621.0,0.4331716]
[1742007532041,0.2948302,84622.0,84621.0,0.1831716]
[1742007532224,0.2948302,84622.0,84621.0,0.4331716]
[1742007532625,0.2948302,84622.0,84621.0,0.4431716]
[1742007533040,0.2948302,84622.0,84621.0,0.1831716]
[1742007534724,0.2948702,84622.0,84621.0,0.1831716]
[1742007536137,0.2948702,84622.0,84621.0,0.065]
[1742007536334,0.2948702,84622.0,84621.0,0.4258]
[1742007537136,0.4048702,84622.0,84621.0,0.4258]
[1742007537440,0.2948702,84622.0,84621.0,0.4258]
[1742007537941,0.2948702,84622.0,84621.0,0.7939716]
[1742007538635,0.1181702,84622.0,84621.0,0.5439716]
[1742007539239,0.1823702,84622.0,84621.0,0.5439716]
[1742007539642,0.1823702,84622.0,84621.0,0.4258]
[1742007539832,0.1823702,84622.0,84621.0,0.5439716]
[1742007544031,0.1823702,84622.0,84621.0,0.4258]
[1742007545751,0.4223702,84622.0,84621.0,0.3608]
[1742007545953,0.1181897,84608.0,84604.0,0.0311]
[1742007546139,0.1181897,84608.0,84604.0,0.0632]
[1742007546335,0.1181897,84608.0,84607.0,0.01386644]
[1742007546535,0.3681897,84608.0,84607.0,0.00017721]
[1742007546741,0.1181897,84608.0,84607.0,0.00017721]
[1742007546941,0.7189897,84608.0,84607.0,0.00017721]
[1742007547146,0.3481897,84608.0,84607.0,0.00017721]
[1742007547343,0.1191897,84608.0,84607.0,0.01365313]
[1742007547539,0.1191897,84608.0,84607.0,0.00017721]
[1742007547745,0.4196897,84608.0,84607.0,0.00017721]
[1742007547948,0.1496897,84608.0,84607.0,0.00017721]
[1742007548348,0.3806897,84608.0,84607.0,0.00017721]
[1742007548649,0.1506897,84608.0,84607.0,0.00017721]
[1742007549536,0.4206897,84608.0,84607.0,0.00017721]
[1742007549739,0.3806897,84608.0,84607.0,0.00017721]
[1742007549951,0.1506897,84608.0,84607.0,0.03307721]
[1742007550942,0.4106897,84608.0,84607.0,0.03307721]
[1742007551146,0.4106897,84608.0,84607.0,0.15126831]
[1742007551147,0.1201897,84608.0,84607.0,0.15126831]
[1742007551453,0.002,84608.0,84607.0,0.22126831]
[1742007551656,0.002,84608.0,84607.0,0.25396831]
[1742007552251,0.1201897,84608.0,84607.0,0.18396831]
[1742007552558,0.002,84608.0,84607.0,0.41396831]
[1742007552744,0.1201897,84608.0,84607.0,0.18396831]
[1742007553155,0.1201897,84608.0,84607.0,0.41396831]
[1742007553353,0.1201897,84608.0,84607.0,0.43396831]
[1742007554151,0.1201897,84608.0,84607.0,0.46396831]
[1742007555357,0.1201897,84608.0,84607.0,0.47396831]
[1742007555568,0.1201897,84608.0,84607.0,0.46396831]
[1742007555758,0.1201897,84608.0,84607.0,0.18396831]
[1742007555952,0.1201897,84608.0,84607.0,0.46396831]
[1742007556151,0.1201897,84608.0,84607.0,0.43396831]
[1742007556351,0.1201897,84608.0,84607.0,0.18396831]
[1742007556551,0.1201897,84608.0,84607.0,0.42396831]
[1742007556758,0.1201897,84608.0,84607.0,0.18396831]
[1742007557448,0.1201897,84608.0,84607.0,0.42396831]
[1742007557849,0.1201897,84608.0,84607.0,0.18396831]
[1742007558054,0.1201897,84608.0,84607.0,0.42396831]
[1742007558259,0.1201897,84608.0,84607.0,0.18396831]
[1742007558655,0.1201897,84608.0,84607.0,0.06577721]
[1742007558851,0.1523897,84608.0,84607.0,0.06577721]
[1742007559649,0.1201897,84608.0,84607.0,0.41396831]
[1742007559849,0.1201897,84608.0,84607.0,0.18396831]
[1742007560252,0.1201897,84608.0,84607.0,0.43396831]
[1742007561258,0.1201897,84608.0,84607.0,0.46396831]
[1742007561460,0.1201897,84608.0,84607.0,0.18396831]
[1742007561659,0.1201897,84608.0,84607.0,0.42396831]
[1742007562157,0.1201897,84608.0,84607.0,0.46396831]
[1742007562360,0.1522897,84608.0,84607.0,0.06577721]
[1742007562854,0.1522897,84608.0,84607.0,0.03307721]
[1742007563054,0.1854897,84608.0,84607.0,0.03307721]
[1742007565462,0.7862897,84608.0,84607.0,0.03307721]
[1742007565658,0.8162897,84608.0,84607.0,0.03307721]
[1742007565856,0.5462897,84608.0,84607.0,0.03307721]
[1742007567057,0.1854897,84608.0,84607.0,0.03307721]
[1742007567666,0.1522897,84608.0,84607.0,0.03307721]
[1742007568268,0.1854897,84608.0,84607.0,0.03307721]
[1742007568465,0.1854897,84608.0,84607.0,0.29307721]
[1742007568773,0.1854897,84608.0,84607.0,0.03307721]
[1742007571865,0.4254897,84608.0,84607.0,0.03307721]
[1742007572066,0.4154897,84608.0,84607.0,0.03307721]
[1742007572259,0.1854897,84608.0,84607.0,0.03307721]
[1742007573972,0.1854897,84608.0,84607.0,0.39387721]
[1742007574669,0.1854897,84608.0,84607.0,0.03307721]
[1742007577470,0.1854897,84608.0,84607.0,0.39387721]
[1742007578972,0.4454897,84608.0,84607.0,0.39387721]
[1742007579166,0.1854897,84608.0,84607.0,0.39387721]
[1742007579771,0.1854897,84608.0,84607.0,0.03307721]
[1742007579972,0.1854897,84608.0,84607.0,0.00017721]
[1742007580166,0.2854897,84608.0,84607.0,0.00017721]
[1742007580376,0.2954897,84608.0,84607.0,0.00017721]
[1742007580572,0.1854897,84608.0,84607.0,0.00017721]
[1742007581367,0.4554897,84608.0,84607.0,0.00017721]
[1742007581678,0.1854897,84608.0,84607.0,0.00017721]
[1742007582578,0.4254897,84608.0,84607.0,0.00017721]
[1742007582773,0.1854897,84608.0,84607.0,0.00017721]
[1742007583273,0.2754897,84608.0,84607.0,0.00017721]
[1742007583467,0.1854897,84608.0,84607.0,0.00017721]
[1742007583668,0.4254897,84608.0,84607.0,0.00017721]
[1742007583862,0.2754897,84608.0,84607.0,0.00017721]
[1742007584064,0.1854897,84608.0,84607.0,0.00017721]
[1742007585372,0.2954897,84608.0,84607.0,0.00017721]
[1742007585570,0.1854897,84608.0,84607.0,0.00017721]
[1742007585773,0.2954897,84608.0,84607.0,0.00017721]
[1742007586076,0.1854897,84608.0,84607.0,0.00017721]
[1742007586271,0.2754897,84608.0,84607.0,0.00017721]
[1742007586472,0.1854897,84608.0,84607.0,0.00017721]
[1742007587376,0.5462897,84608.0,84607.0,0.00017721]
[1742007587575,0.1854897,84608.0,84607.0,0.00017721]
[1742007587784,0.4816897,84608.0,84607.0,0.00017721]
[1742007587973,0.7424897,84608.0,84607.0,0.00017721]
[1742007588479,0.3816897,84608.0,84607.0,0.00017721]
[1742007589875,0.4816897,84608.0,84607.0,0.00017721]
[1742007590081,0.3816897,84608.0,84607.0,0.00017721]
[1742007590270,0.4643897,84608.0,84607.0,0.00017721]
[1742007590780,0.4970897,84608.0,84607.0,0.00017721]
[1742007590979,0.6070897,84608.0,84607.0,0.00017721]
[1742007591180,0.4970897,84608.0,84607.0,0.00017721]
[1742007591378,0.5970897,84608.0,84607.0,0.00017721]
[1742007591581,0.4970897,84608.0,84607.0,0.00017721]
[1742007591971,0.5970897,84608.0,84607.0,0.00017721]
[1742007592177,0.4970897,84608.0,84607.0,0.00017721]
[1742007592479,0.1181939,84605.0,84604.0,0.031]
[1742007592785,0.1181995,84601.0,84600.0,0.0311]
[1742007592981,0.1182037,84598.0,84594.0,0.01313431]
[1742007593172,0.2330037,84598.0,84594.0,0.01313431]
[1742007593374,0.1182079,84595.0,84594.0,0.01313431]